[Event "11th Dolomiti Open 2020"]
[Site "Forni di Sopra"]
[Date "2020.09.29"]
[Round "4.10"]
[White "Ollari, Luca"]
[Black "Ranfagni, Stefano"]
[Result "1/2-1/2"]
[ECO "C69"]
[WhiteElo "1826"]
[BlackElo "1844"]
[Annotator "NA"]
[PlyCount "35"]
[EventDate "2020.09.26"]
[EventType "swiss"]
[EventCountry "ITA"]
[SourceTitle "playchess.com"]
[Source "ChessBase"]
[SourceQuality "1"]
[TimeControl "40/5400+30:1800+30"]

1. e4 {[%emt 0:00:00]} e5 {[%emt 0:00:00]} 2. Nf3 {[%emt 0:00:00]} Nc6 {[%emt 0:00:00]} 3. Bb5 {[%emt 0:00:00]} a6 {[%emt 0:00:00]} 4. Bxc6 {[%emt 0:00:00]} dxc6 {[%emt 0:00:00]} 5. O-O {[%emt 0:00:00]} f6 {[%emt 0:01:18]} 6. d4 {[%emt 0:00:00]} exd4 {[%emt 0:01:16]} 7. Nxd4 {[%emt 0:00:16]} c5 {[%emt 0:01:35]} 8. Nb3 {[%emt 0:00:02]} Qxd1 {[%emt 0:00:52]} 9. Rxd1 {[%emt 0:00:03]} Bd6 {[%emt 0:00:32]} 10. Be3 {[%emt 0:11:32]} b6 {[%emt 0:03:36]} 11. Nc3 {[%emt 0:04:12]} Bg4 {[%emt 0:02:04]} 12. Rd2 {[%emt 0:04:37]} O-O-O {[%emt 0:01:39]} 13. f3 {[%emt 0:03:26]} Be6 {[%emt 0:01:17]} 14. Rad1 {[%emt 0:00:40]} Ne7 {[%emt 0:00:30]} 15. Na4 {[%emt 0:06:02]} Bxb3 {[%emt 0:07:38]} 16. axb3 {[%emt 0:00:24]} Kb7 {[%emt 0:00:31]} 17. Nc3 {[%emt 0:06:02]} Ng6 {[%emt 0:05:10]} 18. g3 {[%emt 0:00:24]} 1/2-1/2

[Event "11th Dolomiti Open 2020"]
[Site "Forni di Sopra"]
[Date "2020.09.29"]
[Round "5.1"]
[White "Valsecchi, Alessio"]
[Black "Blohberger, Felix"]
[Result "1-0"]
[ECO "E21"]
[WhiteElo "2491"]
[BlackElo "2467"]
[Annotator "ChessBase"]
[PlyCount "43"]
[EventDate "2020.09.26"]
[EventType "swiss"]
[EventCountry "ITA"]
[SourceTitle "playchess.com"]
[Source "ChessBase"]
[SourceQuality "1"]
[TimeControl "40/5400+30:1800+30"]

1. d4 {[%emt 0:00:00]} Nf6 {[%emt 0:04:11]} 2. c4 {[%emt 0:00:00]} e6 {[%emt 0:00:12]} 3. Nc3 {[%emt 0:00:00]} Bb4 {[%emt 0:00:09]} 4. Nf3 {[%emt 0:00:04]} O-O {[%emt 0:01:27]} 5. Bg5 {[%emt 0:05:06]} h6 {[%emt 0:00:36]} 6. Bh4 {[%emt 0:00:09]} c5 {[%emt 0:03:20]} 7. Rc1 {[%emt 0:00:13]} cxd4 {[%emt 0:01:41]} 8. Nxd4 {[%emt 0:00:06]} a6 {[%emt 0:01:44]} 9. e3 {[%emt 0:06:04]} Nc6 {[%emt 0:14:52]} 10. Be2 {[%emt 0:08:02]} Be7 {[%emt 0:03:19]} 11. O-O {[%emt 0:03:29]} d6 {[%emt 0:00:23]} 12. Bg3 {[%emt 0:05:51]} Bd7 {[%emt 0:03:58]} 13. Nb3 {[%emt 0:10:25]} e5 {[%emt 0:00:21]} 14. Qd2 {[%emt 0:06:22]} Be6 {[%emt 0:04:31]} 15. Rfd1 {[%emt 0:02:00]} Qb6 {[%emt 0:05:34]} 16. f3 {[%emt 0:04:27]} Rfd8 {[%emt 0:02:42]} 17. Bf2 {[%emt 0:03:25]} d5 {[%emt 0:19:29]} 18. Nxd5 {[%emt 0:03:17]} Nxd5 {[%emt 0:06:56]} 19. e4 {[%emt 0:03:31]} Nd4 {[%emt 0:08:15]} 20. exd5 {[%emt 0:03:01]} Bg5 {[%emt 0:06:31]} 21. f4 {[%emt 0:02:33]} Bxf4 {[%emt 0:00:44]} 22. Bxd4 {[%emt 0:00:18]} 1-0

[Event "11th Dolomiti Open 2020"]
[Site "Forni di Sopra"]
[Date "2020.09.29"]
[Round "5.2"]
[White "Moroni, Luca Jr"]
[Black "Heberla, Bartlomiej"]
[Result "1/2-1/2"]
[ECO "D36"]
[WhiteElo "2530"]
[BlackElo "2566"]
[Annotator "ChessBase"]
[PlyCount "84"]
[EventDate "2020.09.26"]
[EventType "swiss"]
[EventCountry "ITA"]
[SourceTitle "playchess.com"]
[Source "ChessBase"]
[SourceQuality "1"]
[TimeControl "40/5400+30:1800+30"]

1. d4 {[%emt 0:00:00]} Nf6 {[%emt 0:11:40]} 2. c4 {[%emt 0:00:00]} e6 {[%emt 0:00:03]} 3. Nc3 {[%emt 0:00:00]} d5 {[%emt 0:00:07]} 4. cxd5 {[%emt 0:00:00]} exd5 {[%emt 0:00:02]} 5. Bg5 {[%emt 0:00:00]} c6 {[%emt 0:01:48]} 6. e3 {[%emt 0:00:00]} Be7 {[%emt 0:00:07]} 7. Bd3 {[%emt 0:00:00]} Nbd7 {[%emt 0:00:30]} 8. h3 {[%emt 0:00:02]} O-O {[%emt 0:00:45]} 9. Qc2 {[%emt 0:00:29]} Re8 {[%emt 0:01:20]} 10. Nf3 {[%emt 0:00:05]} Nf8 {[%emt 0:00:52]} 11. O-O {[%emt 0:00:06]} Be6 {[%emt 0:07:54]} 12. Rab1 {[%emt 0:05:37]} N6d7 {[%emt 0:03:41]} 13. Bxe7 {[%emt 0:01:40]} Qxe7 {[%emt 0:00:06]} 14. b4 {[%emt 0:00:17]} Qf6 {[%emt 0:06:49]} 15. Nd2 {[%emt 0:04:28]} Rac8 {[%emt 0:17:46]} 16. Ne2 {[%emt 0:05:34]} Kh8 {[%emt 0:18:12]} 17. Rbc1 {[%emt 0:04:37]} Qe7 {[%emt 0:03:59]} 18. a3 {[%emt 0:06:18]} f6 {[%emt 0:02:17]} 19. Qb2 {[%emt 0:06:01]} Bf7 {[%emt 0:03:34]} 20. b5 {[%emt 0:01:59]} c5 {[%emt 0:00:01]} 21. dxc5 {[%emt 0:00:45]} Nxc5 {[%emt 0:00:48]} 22. Bb1 {[%emt 0:02:07]} Bg6 {[%emt 0:01:01]} 23. Nf4 {[%emt 0:02:09]} Bxb1 {[%emt 0:00:06]} 24. Qxb1 {[%emt 0:00:51]} Nce6 {[%emt 0:04:32]} 25. Rxc8 {[%emt 0:00:31]} Rxc8 {[%emt 0:00:11]} 26. Nxe6 {[%emt 0:06:13]} Nxe6 {[%emt 0:00:50]} 27. Qd3 {[%emt 0:00:54]} Qc5 {[%emt 0:02:28]} 28. Nb3 {[%emt 0:04:26]} Qd6 {[%emt 0:04:49]} 29. Rd1 {[%emt 0:01:45]} Rd8 {[%emt 0:00:01]} 30. a4 {[%emt 0:04:23]} Qb4 {[%emt 0:02:50]} 31. Nd4 {[%emt 0:02:35]} Nxd4 {[%emt 0:00:05]} 32. Qxd4 {[%emt 0:00:04]} Qxd4 {[%emt 0:00:05]} 33. Rxd4 {[%emt 0:00:03]} Kg8 {[%emt 0:00:06]} 34. Rd2 {[%emt 0:02:43]} Kf7 {[%emt 0:00:30]} 35. Rc2 {[%emt 0:00:24]} Ke6 {[%emt 0:01:11]} 36. Kf1 {[%emt 0:00:35]} Kd7 {[%emt 0:03:53]} 37. Ke2 {[%emt 0:02:31]} Re8 {[%emt 0:00:26]} 38. f3 {[%emt 0:01:49]} Rc8 {[%emt 0:00:29]} 39. Rxc8 {[%emt 0:02:10]} Kxc8 {[%emt 0:00:04]} 40. Kd3 {[%emt 0:00:20]} Kc7 {[%emt 0:00:18]} 41. Kd4 {[%emt 0:30:29]} Kd6 {[%emt 0:30:04]} 42. h4 {[%emt 0:01:26]} g6 {[%emt 0:00:00]} 1/2-1/2

[Event "11th Dolomiti Open 2020"]
[Site "Forni di Sopra"]
[Date "2020.09.29"]
[Round "5.3"]
[White "Bellia, Fabrizio"]
[Black "Barp, Alberto"]
[Result "1/2-1/2"]
[ECO "B10"]
[WhiteElo "2421"]
[BlackElo "2377"]
[Annotator "ChessBase"]
[PlyCount "61"]
[EventDate "2020.09.26"]
[EventType "swiss"]
[EventCountry "ITA"]
[SourceTitle "playchess.com"]
[Source "ChessBase"]
[SourceQuality "1"]
[TimeControl "40/5400+30:1800+30"]

1. e4 {[%emt 0:00:00]} c6 {[%emt 0:00:00]} 2. Nf3 {[%emt 0:00:00]} d5 {[%emt 0:00:00]} 3. d3 {[%emt 0:00:00]} dxe4 {[%emt 0:00:22]} 4. dxe4 {[%emt 0:00:03]} Qxd1+ {[%emt 0:00:05]} 5. Kxd1 {[%emt 0:00:05]} Nf6 {[%emt 0:00:08]} 6. Nfd2 {[%emt 0:00:19]} h5 {[%emt 0:01:05]} 7. a4 {[%emt 0:02:38]} g5 {[%emt 0:04:11]} 8. f3 {[%emt 0:03:07]} g4 {[%emt 0:07:46]} 9. Nc4 {[%emt 0:03:20]} Be6 {[%emt 0:07:04]} 10. Nbd2 {[%emt 0:05:18]} Bh6 {[%emt 0:09:39]} 11. Nb3 {[%emt 0:02:28]} Nbd7 {[%emt 0:04:05]} 12. Bxh6 {[%emt 0:04:05]} Rxh6 {[%emt 0:00:10]} 13. Nd4 {[%emt 0:19:07]} Bxc4 {[%emt 0:02:53]} 14. Bxc4 {[%emt 0:00:09]} e6 {[%emt 0:06:44]} 15. Ke2 {[%emt 0:11:37]} Ne5 {[%emt 0:06:07]} 16. Bb3 {[%emt 0:02:46]} O-O-O {[%emt 0:01:00]} 17. c3 {[%emt 0:05:18]} c5 {[%emt 0:16:40]} 18. Nb5 {[%emt 0:05:39]} gxf3+ {[%emt 0:02:52]} 19. gxf3 {[%emt 0:00:12]} a6 {[%emt 0:00:15]} 20. Na3 {[%emt 0:00:21]} Rg6 {[%emt 0:09:16]} 21. Rhg1 {[%emt 0:09:31]} h4 {[%emt 0:00:36]} 22. Rxg6 {[%emt 0:00:46]} Nxg6 {[%emt 0:01:20]} 23. Rg1 {[%emt 0:04:50]} Nh5 {[%emt 0:02:22]} 24. Rd1 {[%emt 0:04:26]} Rxd1 {[%emt 0:07:58]} 25. Bxd1 {[%emt 0:00:14]} Kc7 {[%emt 0:00:23]} 26. a5 {[%emt 0:02:07]} Nhf4+ {[%emt 0:01:30]} 27. Ke3 {[%emt 0:00:14]} Ng2+ {[%emt 0:00:23]} 28. Kf2 {[%emt 0:00:18]} N2f4 {[%emt 0:00:03]} 29. Ke3 {[%emt 0:02:18]} Ng2+ {[%emt 0:02:21]} 30. Kf2 {[%emt 0:01:13]} N2f4 {[%emt 0:00:04]} 31. Ke3 {[%emt 0:02:28]} 1/2-1/2

[Event "11th Dolomiti Open 2020"]
[Site "Forni di Sopra"]
[Date "2020.09.29"]
[Round "5.4"]
[White "Andolfatto, Maria"]
[Black "Marchesich, Giovanni"]
[Result "1-0"]
[ECO "D74"]
[WhiteElo "2002"]
[BlackElo "2063"]
[Annotator "ChessBase"]
[PlyCount "51"]
[EventDate "2020.09.26"]
[EventType "swiss"]
[EventCountry "ITA"]
[SourceTitle "playchess.com"]
[Source "ChessBase"]
[SourceQuality "1"]
[TimeControl "40/5400+30:1800+30"]

1. Nf3 {[%emt 0:00:00]} Nf6 {[%emt 0:00:00]} 2. c4 {[%emt 0:00:05]} g6 {[%emt 0:00:10]} 3. g3 {[%emt 0:00:17]} Bg7 {[%emt 0:00:30]} 4. Bg2 {[%emt 0:00:07]} O-O {[%emt 0:00:34]} 5. Nc3 {[%emt 0:00:15]} d5 {[%emt 0:01:31]} 6. cxd5 {[%emt 0:00:25]} Nxd5 {[%emt 0:00:10]} 7. O-O {[%emt 0:00:13]} Nc6 {[%emt 0:00:26]} 8. d4 {[%emt 0:02:11]} e5 {[%emt 0:00:47]} 9. Nxd5 {[%emt 0:13:19]} e4 {[%emt 0:00:14]} 10. Ne5 {[%emt 0:02:28]} Qxd5 {[%emt 0:00:48]} 11. Nxc6 {[%emt 0:01:08]} Qxc6 {[%emt 0:01:39]} 12. Bf4 {[%emt 0:03:20]} Qd5 {[%emt 0:01:23]} 13. Bxc7 {[%emt 0:10:21]} Qxd4 {[%emt 0:04:41]} 14. Qxd4 {[%emt 0:01:40]} Bxd4 {[%emt 0:00:10]} 15. Bxe4 {[%emt 0:00:13]} Re8 {[%emt 0:06:50]} 16. Bf3 {[%emt 0:02:31]} Bxb2 {[%emt 0:08:10]} 17. Rab1 {[%emt 0:00:50]} Be5 {[%emt 0:01:21]} 18. Bxe5 {[%emt 0:03:39]} Rxe5 {[%emt 0:00:09]} 19. Rfd1 {[%emt 0:02:00]} Be6 {[%emt 0:32:01]} 20. Rxb7 {[%emt 0:07:46]} Ra5 {[%emt 0:00:34]} 21. Rxf7 {[%emt 0:03:37]} Kxf7 {[%emt 0:00:25]} 22. Bxa8 {[%emt 0:00:06]} Rxa2 {[%emt 0:00:16]} 23. e4 {[%emt 0:01:29]} Bg4 {[%emt 0:04:48]} 24. Bd5+ {[%emt 0:01:50]} Kf6 {[%emt 0:00:45]} 25. f3 {[%emt 0:01:55]} Bxf3 {[%emt 0:03:43]} 26. e5+ {[%emt 0:02:02]} 1-0

[Event "11th Dolomiti Open 2020"]
[Site "Forni di Sopra"]
[Date "2020.09.29"]
[Round "5.5"]
[White "Basso, Pier Luigi"]
[Black "Fecker, Noah"]
[Result "1-0"]
[ECO "D79"]
[WhiteElo "2603"]
[BlackElo "2345"]
[Annotator "ChessBase"]
[PlyCount "85"]
[EventDate "2020.09.26"]
[EventType "swiss"]
[EventCountry "ITA"]
[SourceTitle "playchess.com"]
[Source "ChessBase"]
[SourceQuality "1"]
[TimeControl "40/5400+30:1800+30"]

1. d4 {[%emt 0:00:00]} Nf6 {[%emt 0:00:00]} 2. Nf3 {[%emt 0:00:00]} g6 {[%emt 0:00:00]} 3. g3 {[%emt 0:00:00]} Bg7 {[%emt 0:00:00]} 4. Bg2 {[%emt 0:00:00]} O-O {[%emt 0:00:38]} 5. O-O {[%emt 0:00:00]} d5 {[%emt 0:00:52]} 6. c4 {[%emt 0:00:00]} c6 {[%emt 0:00:06]} 7. cxd5 {[%emt 0:00:01]} cxd5 {[%emt 0:00:09]} 8. Nc3 {[%emt 0:00:13]} Ne4 {[%emt 0:02:12]} 9. Ne5 {[%emt 0:00:09]} Nxc3 {[%emt 0:01:57]} 10. bxc3 {[%emt 0:00:01]} Nc6 {[%emt 0:00:14]} 11. Nxc6 {[%emt 0:00:05]} bxc6 {[%emt 0:00:06]} 12. Qa4 {[%emt 0:00:04]} Qb6 {[%emt 0:01:02]} 13. Ba3 {[%emt 0:00:06]} Qa6 {[%emt 0:00:39]} 14. Qxa6 {[%emt 0:00:05]} Bxa6 {[%emt 0:00:03]} 15. Rfb1 {[%emt 0:00:07]} Rfe8 {[%emt 0:32:39]} 16. Bf1 {[%emt 0:00:09]} Bf8 {[%emt 0:03:23]} 17. e3 {[%emt 0:00:09]} Bxf1 {[%emt 0:01:33]} 18. Kxf1 {[%emt 0:00:04]} Reb8 {[%emt 0:03:51]} 19. Bc5 {[%emt 0:00:07]} e6 {[%emt 0:12:40]} 20. Rxb8 {[%emt 0:00:22]} Rxb8 {[%emt 0:00:01]} 21. Bxa7 {[%emt 0:00:09]} Rb7 {[%emt 0:04:33]} 22. Bc5 {[%emt 0:01:03]} Bxc5 {[%emt 0:00:06]} 23. dxc5 {[%emt 0:00:06]} Rb5 {[%emt 0:00:34]} 24. a4 {[%emt 0:04:33]} Rxc5 {[%emt 0:02:48]} 25. a5 {[%emt 0:00:06]} Rb5 {[%emt 0:00:13]} 26. c4 {[%emt 0:19:08]} Rb8 {[%emt 0:08:47]} 27. Ke2 {[%emt 0:04:00]} Kf8 {[%emt 0:01:09]} 28. Kd3 {[%emt 0:05:55]} Ke7 {[%emt 0:02:09]} 29. a6 {[%emt 0:19:18]} Kd6 {[%emt 0:00:59]} 30. cxd5 {[%emt 0:00:04]} exd5 {[%emt 0:02:35]} 31. e4 {[%emt 0:00:15]} Ra8 {[%emt 0:04:57]} 32. exd5 {[%emt 0:00:18]} Kxd5 {[%emt 0:00:45]} 33. Ra5+ {[%emt 0:02:04]} Kd6 {[%emt 0:06:51]} 34. Kc4 {[%emt 0:00:03]} h5 {[%emt 0:00:11]} 35. a7 {[%emt 0:01:16]} Kc7 {[%emt 0:02:30]} 36. Kc5 {[%emt 0:00:04]} Kb7 {[%emt 0:00:08]} 37. h4 {[%emt 0:00:16]} Kc7 {[%emt 0:00:24]} 38. Ra1 {[%emt 0:00:05]} Kb7 {[%emt 0:00:31]} 39. Ra2 {[%emt 0:00:04]} Kc7 {[%emt 0:00:19]} 40. Re2 {[%emt 0:00:19]} Rxa7 {[%emt 0:01:11]} 41. Re7+ {[%emt 0:30:07]} Kb8 {[%emt 0:30:02]} 42. Rxa7 {[%emt 0:00:06]} Kxa7 {[%emt 0:00:01]} 43. Kxc6 {[%emt 0:00:35]} 1-0

[Event "11th Dolomiti Open 2020"]
[Site "Forni di Sopra"]
[Date "2020.09.29"]
[Round "5.6"]
[White "Cumming, Rhys"]
[Black "Gumularz, Szymon"]
[Result "1/2-1/2"]
[ECO "E04"]
[WhiteElo "2299"]
[BlackElo "2518"]
[Annotator "ChessBase"]
[PlyCount "67"]
[EventDate "2020.09.26"]
[EventType "swiss"]
[EventCountry "ITA"]
[SourceTitle "playchess.com"]
[Source "ChessBase"]
[SourceQuality "1"]
[TimeControl "40/5400+30:1800+30"]

1. d4 {[%emt 0:00:19]} Nf6 {[%emt 0:00:51]} 2. c4 {[%emt 0:00:21]} e6 {[%emt 0:00:04]} 3. Nf3 {[%emt 0:00:48]} d5 {[%emt 0:00:21]} 4. g3 {[%emt 0:00:49]} dxc4 {[%emt 0:05:19]} 5. Bg2 {[%emt 0:00:22]} a6 {[%emt 0:00:04]} 6. O-O {[%emt 0:01:32]} Nc6 {[%emt 0:00:04]} 7. e3 {[%emt 0:01:32]} Rb8 {[%emt 0:00:11]} 8. Nfd2 {[%emt 0:01:49]} e5 {[%emt 0:07:10]} 9. Bxc6+ {[%emt 0:00:54]} bxc6 {[%emt 0:00:04]} 10. dxe5 {[%emt 0:00:18]} Ng4 {[%emt 0:00:09]} 11. Nxc4 {[%emt 0:00:09]} Be6 {[%emt 0:00:15]} 12. Nbd2 {[%emt 0:00:15]} Bb4 {[%emt 0:03:40]} 13. Qe2 {[%emt 0:01:40]} h5 {[%emt 0:00:55]} 14. f3 {[%emt 0:00:23]} Bxd2 {[%emt 0:09:10]} 15. Bxd2 {[%emt 0:02:52]} h4 {[%emt 0:21:47]} 16. fxg4 {[%emt 0:00:45]} hxg3 {[%emt 0:00:46]} 17. b3 {[%emt 0:00:34]} Rxh2 {[%emt 0:08:36]} 18. Qf3 {[%emt 0:04:35]} Rxd2 {[%emt 0:05:59]} 19. Nxd2 {[%emt 0:00:06]} Qxd2 {[%emt 0:00:05]} 20. Qxg3 {[%emt 0:00:09]} Rb4 {[%emt 0:02:40]} 21. Rf4 {[%emt 0:00:56]} Rxf4 {[%emt 0:02:08]} 22. Qxf4 {[%emt 0:01:47]} Bd5 {[%emt 0:00:10]} 23. Qf2 {[%emt 0:12:28]} Qd3 {[%emt 0:06:04]} 24. e6 {[%emt 0:17:24]} Bxe6 {[%emt 0:09:45]} 25. Rf1 {[%emt 0:05:20]} Kf8 {[%emt 0:10:19]} 26. Qf4 {[%emt 0:06:41]} Kg8 {[%emt 0:00:06]} 27. Kh2 {[%emt 0:06:01]} Qe2+ {[%emt 0:00:17]} 28. Rf2 {[%emt 0:00:38]} Qe1 {[%emt 0:00:05]} 29. e4 {[%emt 0:03:13]} c5 {[%emt 0:00:43]} 30. Kg2 {[%emt 0:11:28]} Kh7 {[%emt 0:02:58]} 31. Qh2+ {[%emt 0:06:41]} Kg8 {[%emt 0:00:07]} 32. Qf4 {[%emt 0:00:02]} Kh7 {[%emt 0:00:04]} 33. Rf1 {[%emt 0:02:16]} Qe2+ {[%emt 0:00:48]} 34. Rf2 {[%emt 0:04:55]} 1/2-1/2

[Event "11th Dolomiti Open 2020"]
[Site "Forni di Sopra"]
[Date "2020.09.29"]
[Round "5.7"]
[White "Bordignon, Angelo"]
[Black "Blake, J Morgan"]
[Result "1/2-1/2"]
[ECO "D36"]
[WhiteElo "2024"]
[BlackElo "1982"]
[Annotator "ChessBase"]
[PlyCount "164"]
[EventDate "2020.09.26"]
[EventType "swiss"]
[EventCountry "ITA"]
[SourceTitle "playchess.com"]
[Source "ChessBase"]
[SourceQuality "1"]
[TimeControl "40/5400+30:1800+30"]

1. d4 {[%emt 0:06:04]} d5 {[%emt 0:00:00]} 2. c4 {[%emt 0:00:18]} e6 {[%emt 0:00:00]} 3. Nc3 {[%emt 0:00:21]} Nf6 {[%emt 0:00:00]} 4. cxd5 {[%emt 0:00:08]} exd5 {[%emt 0:00:01]} 5. Bg5 {[%emt 0:00:13]} c6 {[%emt 0:03:15]} 6. Qc2 {[%emt 0:00:19]} Be7 {[%emt 0:00:16]} 7. e3 {[%emt 0:00:12]} Nbd7 {[%emt 0:00:56]} 8. Bd3 {[%emt 0:00:06]} O-O {[%emt 0:00:12]} 9. Nge2 {[%emt 0:00:24]} Re8 {[%emt 0:01:10]} 10. Bf4 {[%emt 0:02:52]} Nf8 {[%emt 0:01:08]} 11. h3 {[%emt 0:00:15]} Ng6 {[%emt 0:01:38]} 12. Bh2 {[%emt 0:01:14]} Bd6 {[%emt 0:01:02]} 13. Bxd6 {[%emt 0:05:02]} Qxd6 {[%emt 0:00:07]} 14. g4 {[%emt 0:00:24]} Qe7 {[%emt 0:07:59]} 15. Ng3 {[%emt 0:00:56]} Nf4 {[%emt 0:09:58]} 16. Bf1 {[%emt 0:00:23]} b5 {[%emt 0:01:32]} 17. O-O-O {[%emt 0:00:37]} Ng6 {[%emt 0:02:55]} 18. Bd3 {[%emt 0:07:39]} a5 {[%emt 0:15:04]} 19. g5 {[%emt 0:00:56]} Nd7 {[%emt 0:02:14]} 20. Nf5 {[%emt 0:05:39]} Qxg5 {[%emt 0:03:09]} 21. Rdg1 {[%emt 0:00:20]} Qf6 {[%emt 0:00:59]} 22. h4 {[%emt 0:00:32]} Nb6 {[%emt 0:01:18]} 23. Nxg7 {[%emt 0:05:06]} Kxg7 {[%emt 0:04:09]} 24. h5 {[%emt 0:00:12]} b4 {[%emt 0:01:39]} 25. Nd1 {[%emt 0:07:26]} Ba6 {[%emt 0:10:28]} 26. Bxa6 {[%emt 0:21:55]} Rxa6 {[%emt 0:00:08]} 27. hxg6 {[%emt 0:00:11]} hxg6 {[%emt 0:01:22]} 28. Qe2 {[%emt 0:00:15]} Raa8 {[%emt 0:02:33]} 29. Qg4 {[%emt 0:03:35]} Rh8 {[%emt 0:05:23]} 30. Qg3 {[%emt 0:04:34]} a4 {[%emt 0:04:09]} 31. Qc7 {[%emt 0:09:17]} c5 {[%emt 0:01:12]} 32. dxc5 {[%emt 0:04:13]} Rxh1 {[%emt 0:11:43]} 33. Rxh1 {[%emt 0:00:26]} Rc8 {[%emt 0:00:14]} 34. Qh2 {[%emt 0:00:19]} Rxc5+ {[%emt 0:01:18]} 35. Kd2 {[%emt 0:00:06]} Rc8 {[%emt 0:02:13]} 36. Ke1 {[%emt 0:03:20]} d4 {[%emt 0:02:11]} 37. Qh7+ {[%emt 0:00:34]} Kf8 {[%emt 0:00:05]} 38. Qh8+ {[%emt 0:00:15]} Ke7 {[%emt 0:00:47]} 39. Qxf6+ {[%emt 0:00:54]} Kxf6 {[%emt 0:00:02]} 40. exd4 {[%emt 0:00:12]} Rc2 {[%emt 0:01:51]} 41. Rh3 {[%emt 0:30:13]} Nd5 {[%emt 0:32:51]} 42. Rd3 {[%emt 0:00:25]} Nf4 {[%emt 0:00:00]} 43. Rf3 {[%emt 0:00:00]} g5 {[%emt 0:00:00]} 44. d5 {[%emt 0:00:00]} Re2+ {[%emt 0:00:00]} 45. Kf1 {[%emt 0:00:00]} Rd2 {[%emt 0:00:00]} 46. Ke1 {[%emt 0:00:00]} Rxd5 {[%emt 0:00:00]} 47. Ne3 {[%emt 0:00:00]} Rc5 {[%emt 0:00:00]} 48. Kd2 {[%emt 0:00:00]} b3 {[%emt 0:00:00]} 49. axb3 {[%emt 0:00:00]} axb3 {[%emt 0:00:00]} 50. Rg3 {[%emt 0:00:00]} Kg6 {[%emt 0:00:00]} 51. Rg1 {[%emt 0:00:00]} f5 {[%emt 0:00:00]} 52. Ra1 {[%emt 0:00:00]} g4 {[%emt 0:00:00]} 53. Ra6+ {[%emt 0:00:00]} Kg5 {[%emt 0:00:00]} 54. Rb6 {[%emt 0:00:00]} Nh3 {[%emt 0:00:00]} 55. Ke2 {[%emt 0:00:00]} f4 {[%emt 0:00:00]} 56. Nd1 {[%emt 0:00:00]} Rc2+ {[%emt 0:00:00]} 57. Ke1 {[%emt 0:00:00]} g3 {[%emt 0:02:49]} 58. fxg3 {[%emt 0:00:00]} fxg3 {[%emt 0:00:10]} 59. Rb5+ {[%emt 0:00:00]} Kf4 {[%emt 0:01:00]} 60. Rb4+ {[%emt 0:00:00]} Ke5 {[%emt 0:01:41]} 61. Ne3 {[%emt 0:00:00]} g2 {[%emt 0:03:54]} 62. Nxg2 {[%emt 0:00:00]} Rxg2 {[%emt 0:00:06]} 63. Rxb3 {[%emt 0:00:00]} Nf4 {[%emt 0:00:14]} 64. Kd1 {[%emt 0:00:00]} Nd5 {[%emt 0:00:27]} 65. Kc1 {[%emt 0:00:00]} Kd4 {[%emt 0:00:15]} 66. Rh3 {[%emt 0:00:00]} Ne3 {[%emt 0:00:50]} 67. Rh1 {[%emt 0:00:00]} Re2 {[%emt 0:01:00]} 68. Rh8 {[%emt 0:00:00]} Nd5 {[%emt 0:00:59]} 69. Rd8 {[%emt 0:00:00]} Kc4 {[%emt 0:00:22]} 70. b3+ {[%emt 0:00:00]} Kc5 {[%emt 0:00:41]} 71. Rc8+ {[%emt 0:00:00]} Kb4 {[%emt 0:00:28]} 72. Kd1 {[%emt 0:00:00]} Rh2 {[%emt 0:00:24]} 73. Rb8+ {[%emt 0:00:02]} Kc3 {[%emt 0:00:16]} 74. Ke1 {[%emt 0:00:06]} Nb4 {[%emt 0:00:40]} 75. Kf1 {[%emt 0:00:50]} Kxb3 {[%emt 0:00:03]} 76. Rf8 {[%emt 0:00:16]} Nd3 {[%emt 0:00:15]} 77. Kg1 {[%emt 0:00:35]} Ra2 {[%emt 0:00:15]} 78. Rg8 {[%emt 0:00:25]} Kc3 {[%emt 0:00:07]} 79. Rg2 {[%emt 0:00:25]} Ra8 {[%emt 0:01:17]} 80. Rg7 {[%emt 0:00:18]} Kd2 {[%emt 0:00:26]} 81. Kh2 {[%emt 0:01:09]} Ke3 {[%emt 0:00:21]} 82. Kg3 {[%emt 0:00:10]} Ne5 {[%emt 0:00:37]} 1/2-1/2

[Event "11th Dolomiti Open 2020"]
[Site "Forni di Sopra"]
[Date "2020.09.29"]
[Round "5.8"]
[White "Tencati, Giuseppe"]
[Black "Seresin, Francesco"]
[Result "0-1"]
[ECO "B12"]
[WhiteElo "2095"]
[BlackElo "2371"]
[Annotator "ChessBase"]
[PlyCount "60"]
[EventDate "2020.09.26"]
[EventType "swiss"]
[EventCountry "ITA"]
[SourceTitle "playchess.com"]
[Source "ChessBase"]
[SourceQuality "1"]
[TimeControl "40/5400+30:1800+30"]

1. e4 {[%emt 0:00:00]} c6 {[%emt 0:01:51]} 2. d4 {[%emt 0:00:03]} d5 {[%emt 0:00:06]} 3. e5 {[%emt 0:00:07]} Bf5 {[%emt 0:00:22]} 4. h4 {[%emt 0:00:28]} h5 {[%emt 0:00:33]} 5. Bd3 {[%emt 0:00:28]} Bxd3 {[%emt 0:00:16]} 6. Qxd3 {[%emt 0:00:06]} Qa5+ {[%emt 0:00:12]} 7. Nd2 {[%emt 0:01:27]} e6 {[%emt 0:00:30]} 8. Ngf3 {[%emt 0:00:43]} Ne7 {[%emt 0:01:58]} 9. O-O {[%emt 0:01:09]} Nf5 {[%emt 0:00:45]} 10. c4 {[%emt 0:01:19]} Nd7 {[%emt 0:04:47]} 11. b3 {[%emt 0:01:22]} Rd8 {[%emt 0:04:42]} 12. Rd1 {[%emt 0:13:24]} Be7 {[%emt 0:06:21]} 13. g3 {[%emt 0:02:10]} dxc4 {[%emt 0:07:25]} 14. Nxc4 {[%emt 0:01:24]} Qd5 {[%emt 0:01:29]} 15. Bg5 {[%emt 0:13:14]} f6 {[%emt 0:10:41]} 16. Bf4 {[%emt 0:02:31]} Nf8 {[%emt 0:06:55]} 17. Qe2 {[%emt 0:05:37]} Ng6 {[%emt 0:02:31]} 18. Rd3 {[%emt 0:18:42]} Nxf4 {[%emt 0:03:23]} 19. gxf4 {[%emt 0:00:12]} Rh6 {[%emt 0:03:02]} 20. Kh2 {[%emt 0:12:49]} Rg6 {[%emt 0:05:46]} 21. Rg1 {[%emt 0:00:25]} Rg4 {[%emt 0:08:17]} 22. Rxg4 {[%emt 0:01:34]} hxg4 {[%emt 0:00:08]} 23. Nfd2 {[%emt 0:00:21]} Nxh4 {[%emt 0:01:19]} 24. Qxg4 {[%emt 0:00:50]} f5 {[%emt 0:05:49]} 25. Qxg7 {[%emt 0:08:40]} Kd7 {[%emt 0:01:11]} 26. Rh3 {[%emt 0:02:22]} Qxd4 {[%emt 0:02:11]} 27. Rxh4 {[%emt 0:03:08]} Qxf2+ {[%emt 0:00:27]} 28. Kh3 {[%emt 0:00:07]} Qxh4+ {[%emt 0:00:05]} 29. Kg2 {[%emt 0:00:07]} Qxf4 {[%emt 0:01:44]} 30. Nf3 {[%emt 0:00:01]} Qg4+ {[%emt 0:00:12]} 0-1